Cogmind - Beta 15 @@@ ROGUE MODE // 2025.05.21 @ 08:41:04 Player: Nika Jay Result: Self-destructed Performance ------------- Evolutions (1) 500 Regions Visited (3) 600 Robots Destroyed (10) 50 Value Destroyed (82) 82 Prototype IDs (0) 0 Alien Tech Used (0) 0 Bonus (0) 0 TOTAL SCORE: 1232 Bonus ------- None Cogmind --------- Core Integrity 391/400 Matter 300/300 Energy 250/250 System Corruption 0% Temperature Cool (0) Movement Walking (190) Ox1 Location -9/Materials Parts ------- > --- POWER (1) -------- Ion Engine > --- PROPULSION (3) --- Aluminum Leg Aluminum Leg > --- UTILITY (3) ------ Large Storage Unit Seismic Detector > --- WEAPON (2) ------- Small Laser Assault Rifle > --- INVENTORY (15) --- Light Ion Engine Seismic Detector Seismic Detector Light Assault Rifle Light Assault Rifle Light Assault Rifle Grenade Launcher Grenade Launcher Mining Laser Peak State ------------ > --- POWER ------------ Ion Engine > --- PROPULSION ------- Aluminum Leg Aluminum Leg > --- UTILITY ---------- Small Storage Unit Seismic Detector > --- WEAPON ----------- Small Laser Assault Rifle > --- INVENTORY -------- Light Assault Rifle Mining Laser [Rating: 7] Favorites ----------- Power Ion Engine Engine Ion Engine Propulsion Aluminum Leg Leg Aluminum Leg Utility Seismic Detector Device Seismic Detector Storage Large Storage Unit Weapon Assault Rifle Energy Gun Small Laser Ballistic Gun Assault Rifle Build | -11 -10 -10 -9 ------- Run | Yrd Mat Min Mat Slots Evolved 2 | . . . 2 Power . | . . . . Propulsion 1 | . . . 1 Utility 1 | . . . 1 Weapon . | . . . . Parts Attached 8 | 7 1 . . Power 1 | 1 . . . Engine 1 | 1 . . . Core . | . . . . Reactor . | . . . . Propulsion 2 | 2 . . . Treads . | . . . . Leg 2 | 2 . . . Wheel . | . . . . Hover . | . . . . Flight . | . . . . Utility 3 | 2 1 . . Device 1 | 1 . . . Storage 2 | 1 1 . . Processor . | . . . . Hackware . | . . . . Protection . | . . . . Artifact . | . . . . Weapon 2 | 2 . . . Energy Gun 1 | 1 . . . Energy Cannon . | . . . . Ballistic Gun 1 | 1 . . . Ballistic Cannon . | . . . . Launcher . | . . . . Special Weapon . | . . . . Impact Weapon . | . . . . Slashing Weapon . | . . . . Piercing Weapon . | . . . . Special Melee Weapon . | . . . . Unidentified Prototypes . | . . . . Parts Lost . | . . . . Power . | . . . . Propulsion . | . . . . Utility . | . . . . Weapon . | . . . . Highest Loss Streak . | . . . . To Critical Strikes . | . . . . Average Backups 6 | 2 6 8 9 Power . | . 1 1 1 Propulsion . | . . . . Utility 1 | . 2 2 2 Weapon 3 | 1 3 5 6 Tool/Special . | . . . . Unused Backups 9 | . . . 9 Power 1 | . . . 1 Propulsion . | . . . . Utility 2 | . . . 2 Weapon 6 | . . . 6 Tool/Special . | . . . . Average Slot Usage (%) 95 | . 100 100 77 Engine 13 | . 14 14 11 Leg 26 | . 28 28 22 Device 13 | . 14 14 11 Storage 13 | . 14 14 11 Energy Gun 13 | . 14 14 11 Ballistic Gun 13 | . 14 14 11 Peak Build Rating 7 | 7 7 7 7 Average Rating 6 | 5 7 7 7 On Entrance 5 | . 7 7 7 Naked Turns . | . . . . Heaviest Build 29 | 14 29 29 29 Greatest Support 20 | 20 20 20 20 Greatest Overweight (x) 2 | 2 1 1 1 Average Overweight (x) . | . . 1 1 Largest Inventory Capacity 15 | 8 15 15 15 Average Capacity 13 | 7 14 15 15 Most Carried 9 | 5 8 9 9 Average Carried 6 | 2 6 8 9 Final Capacity 15 | 8 15 15 15 Final Carried 9 | 5 8 9 9 Class Distribution -------------------- 100% | Mutant Dominant Class ---------------- Mutant | -10/Materials Mutant | -10/Mines Mutant | -9/Materials Resources | -11 -10 -10 -9 ----------- Run | Yrd Mat Min Mat Matter Collected 343 | 303 40 . . Remotely . | . . . . Salvage Created 250 | 148 102 . . Parts 29 | 17 12 . . Haulers Intercepted 1 | . 1 . . Recyclers Shooed . | . . . . Parts Field Recycled . | . . . . Retrieved Matter . | . . . . Parts Self-Destructed . | . . . . Prevented . | . . . . Kills | -11 -10 -10 -9 ------- Run | Yrd Mat Min Mat Combat Hostiles Destroyed 3 | . 3 . . Guns 3 | . 3 . . Classes Destroyed 5 | 2 3 . . Tunneler 4 | 4 . . . Hauler 1 | . 1 . . Recycler 1 | 1 . . . Watcher 1 | . 1 . . Swarmer 3 | . 3 . . Best Kill Streak 4 | 3 4 . . Combat Bots Only 3 | . 3 . . Max Kills in Single Turn 1 | 1 1 . . Gunslinging . | . . . . Exploded . | . . . . Melee . | . . . . Uniques/NPCs Destroyed . | . . . . Combat | -11 -10 -10 -9 -------- Run | Yrd Mat Min Mat Hostile Shots Fired 18 | . 11 1 6 Missed 4 | . 3 . 1 Hits 14 | . 8 1 5 Projectile 14 | . 8 1 5 Damage Taken 142 | . 81 7 54 Core 16 | . . 7 9 Absorbed by Shields . | . . . . Core Remaining (%) 98 | 100 . 97 . Volleys Fired 21 | 11 10 . . Largest 2 | 2 2 . . Hottest 60 | 60 60 . . Shots Fired 41 | 21 20 . . Gun 41 | 21 20 . . Cannon . | . . . . Launcher . | . . . . Special . | . . . . Kinetic 21 | 11 10 . . Thermal 20 | 10 10 . . Explosive . | . . . . Electromagnetic . | . . . . Robot Hit Streak 10 | 3 10 . . Robot Miss Streak 3 | 3 1 . . Penetration Max . | . . . . Secondary Targets 1 | . 1 . . Max Gunslinging Chain 1 | . 1 . . Shots Hit Robots 28 | 12 16 . . Core Hits 13 | 6 7 . . Critical Kills . | . . . . Critical Parts Destroyed . | . . . . Critical Strikes . | . . . . Melee Attacks . | . . . . Impact . | . . . . Slashing . | . . . . Piercing . | . . . . Sneak Attacks . | . . . . Combat Hostiles . | . . . . Follow-up Attacks . | . . . . Damage Inflicted 324 | 138 178 8 . Guns 316 | 138 178 . . Cannons . | . . . . Explosions . | . . . . Melee . | . . . . Ramming 8 | . . 8 . Kinetic 156 | 74 82 . . Thermal 160 | 64 96 . . Explosive . | . . . . Electromagnetic . | . . . . Impact . | . . . . Slashing . | . . . . Piercing . | . . . . Highest Corruption 1 | . 1 1 . Average Corruption 1 | . 1 1 . Corruption Purged . | . . . . Corruption Blocked . | . . . . Overload Shots . | . . . . Overflow Damage . | . . . . Projectiles . | . . . . Explosions . | . . . . Melee . | . . . . Knockbacks . | . . . . Impact . | . . . . Kinetic . | . . . . Secondary . | . . . . Self-Inflicted Damage . | . . . . Shots . | . . . . Rammed . | . . . . Targets Rammed 1 | . . 1 . Kicked 1 | . . 1 . Crushed . | . . . . Highest Temperature . | . . . . Average Temperature . | . . . . Received Heat Transfer 9 | . . . 9 Siege Activations . | . . . . Martial Activations . | . . . . Shielding Activations . | . . . . Robots Disrupted . | . . . . Combat Hostiles . | . . . . Robots Corrupted . | . . . . Combat Hostiles . | . . . . Parts Fried . | . . . . Impact Corruptions . | . . . . Robots Melted . | . . . . Combat Hostiles . | . . . . Parts Melted . | . . . . Heat Transferred 375 | 150 225 . . Parts Sabotaged . | . . . . Parts Stolen . | . . . . Parts Stripped . | . . . . Power Chain Reactions . | . . . . Alert | -11 -10 -10 -9 ------- Run | Yrd Mat Min Mat Maximum Alert Level . | . . . . Low Security (%) 100 | 100 100 100 100 Level 1 . | . . . . Level 2 . | . . . . Level 3 . | . . . . Level 4 . | . . . . Level 5 . | . . . . High Security . | . . . . Max Security . | . . . . Peak Influence 70 | 15 70 . . Initial . | . . . . Average 8 | 3 15 . . Influence Increases 115 | 25 90 . . Destroy 0b10 Robot/C 60 | . 60 . . Destroy 0b10 Robot/NC 35 | 25 10 . . Destroy Leader 14 | . 14 . . Successful Hack 6 | . 6 . . Influence Decreases 115 | 25 90 . . Time Decay 115 | 25 90 . . Squads Dispatched 1 | . 1 . . Investigation . | . . . . Extermination . | . . . . Reinforcement 1 | . 1 . . Assault . | . . . . Garrison . | . . . . Intercept . | . . . . Searches Triggered . | . . . . Construction Impeded . | . . . . Haulers Reinforced . | . . . . Active Scanning Responses . | . . . . Cargo Convoy Interrupts . | . . . . Stealth | -11 -10 -10 -9 --------- Run | Yrd Mat Min Mat Distress Signals 1 | . 1 . . Communications Jammed . | . . . . Distress Signals . | . . . . Times Spotted 11 | . 6 1 4 Peak Tracking Total 4 | . 4 3 4 Tactical Retreats . | . . . . Traps | -11 -10 -10 -9 ------- Run | Yrd Mat Min Mat Traps Triggered 1 | . 1 . . Indirectly . | . . . . Trap Hack Attempts . | . . . . Triggered . | . . . . Disarmed . | . . . . Reprogrammed . | . . . . Reused . | . . . . Traps Extracted . | . . . . Installed . | . . . . Triggered . | . . . . Machines | -11 -10 -10 -9 ---------- Run | Yrd Mat Min Mat Machines Disabled . | . . . . Max in Single Turn . | . . . . Machines Repaired . | . . . . Machines Dismantled . | . . . . Machines Sabotaged . | . . . . Overloaded Fab Kills . | . . . . Hacking | -11 -10 -10 -9 --------- Run | Yrd Mat Min Mat Machines Accessed 2 | . 1 . 1 Terminals 1 | . 1 . . Fabricators . | . . . . Repair Stations . | . . . . Recycling Units 1 | . . . 1 Scanalyzers . | . . . . Garrison Access . | . . . . Total Hacks 6 | . 3 . 3 Successful 5 | . 3 . 2 Failed 1 | . . . 1 Catastrophic . | . . . . Database Lockouts . | . . . . Manual 6 | . 3 . 3 Terminals 3 | . 3 . . Fabricators . | . . . . Repair Stations . | . . . . Recycling Units 3 | . . . 3 Scanalyzers . | . . . . Garrison Access . | . . . . Terminal Hacks 2 | . 2 . . Robot Analysis 1 | . 1 . . Branch Access Points 1 | . 1 . . Fabricator Hacks . | . . . . Repair Station Hacks . | . . . . Recycling Unit Hacks . | . . . . Scanalyzer . | . . . . Garrison Access Hacks . | . . . . Unauthorized Hacks 3 | . 1 . 2 Terminals 1 | . 1 . . Botnet 1 | . 1 . . Fabricators . | . . . . Repair Stations . | . . . . Recycling Units 2 | . . . 2 Reject 1 | . . . 1 Mask 1 | . . . 1 Scanalyzers . | . . . . Garrison Access . | . . . . Data Cores Recovered . | . . . . Used . | . . . . Hacking Detections 2 | . 1 . 1 Full Trace Events . | . . . . Feedback Events . | . . . . Feedback Blocked . | . . . . Robot Schematics Acquired . | . . . . Robots Built . | . . . . Authchips . | . . . . Time . | . . . . Total Robot Build Rating . | . . . . Part Schematics Acquired . | . . . . Parts Built . | . . . . Authchips . | . . . . Time . | . . . . Total Part Build Rating . | . . . . Parts Repaired . | . . . . Time . | . . . . Parts Recycled . | . . . . Recycled Matter . | . . . . Retrieved Matter . | . . . . Retrieved Components . | . . . . Parts Scanalyzed . | . . . . Part Schematics Acquired . | . . . . Parts Damaged . | . . . . Bothacking | -11 -10 -10 -9 ------------ Run | Yrd Mat Min Mat Used RIF Installer . | . . . . Robots Hacked . | . . . . Non-combat . | . . . . Combat . | . . . . Robot Hacks Applied . | . . . . Relay Couplers Released . | . . . . Fabnet Peak Effective % . | . . . . Robots Rewired . | . . . . Allies Hacked . | . . . . Hacks Repelled . | . . . . Allies | -11 -10 -10 -9 -------- Run | Yrd Mat Min Mat Total Allies . | . . . . Largest Group . | . . . . Highest-Rated Group . | . . . . Highest-Rated Ally . | . . . . Total Orders . | . . . . Ally Attacks . | . . . . Total Damage . | . . . . Kills . | . . . . Allies Corrupted . | . . . . Allies Melted . | . . . . Intel | -11 -10 -10 -9 ------- Run | Yrd Mat Min Mat Active Infowar (turns) 605 | 78 352 87 88 Seismic 605 | 78 352 87 88 Robot Analysis Total 1 | . 1 . . Derelict Logs Recovered 1 | . . 1 . Drone Launches . | . . . . Drone Recoveries . | . . . . Exploration | -11 -10 -10 -9 ------------- Run | Yrd Mat Min Mat Turns Passed 660 | 133 352 87 88 Spaces Moved 332 | 72 169 45 46 Core 6 | 6 . . . Treads . | . . . . Legs 326 | 66 169 45 46 Wheels . | . . . . Hover . | . . . . Flight . | . . . . Fastest Speed 50 | 50 120 190 190 Average Speed 172 | 119 184 190 190 Slowest Speed 190 | 150 190 190 190 Overloaded Moves . | . . . . Propulsion Burnouts . | . . . . Robots Hopped . | . . . . Potential Cave-ins . | . . . . Cave-ins Triggered . | . . . . Exploration Rate (%) 15 | 4 29 22 5 Regions Visited 3 Branch Regions 1 Pre-discovered Areas . | . . . . Known Exits Taken 1 | . 1 . . Unknown Exits Taken 2 | 1 . 1 . Scrap Searched 1 | . . 1 . Spaces Dug . | . . . . Terrain Destroyed . | . . . . Melee . | . . . . Projectile . | . . . . AOE . | . . . . Terrain Rammed . | . . . . Walls Destroyed . | . . . . Machines Disabled . | . . . . Actions | -11 -10 -10 -9 --------- Run | Yrd Mat Min Mat Total 376 | 95 189 46 46 Wait 6 | . 6 . . Move 329 | 71 168 44 46 Hop . | . . . . Pick Up 10 | 6 3 1 . Fast Attach 6 | 6 . . . Attach 1 | 1 . . . Detach . | . . . . Swap 1 | . 1 . . Drop 1 | . 1 . . Fire 21 | 11 10 . . Melee . | . . . . Ram . | . . . . Kick 1 | . . 1 . Crush . | . . . . Escape Stasis . | . . . . Rewire . | . . . . Trap . | . . . . Miscellaneous . | . . . . Route ------- -11/Scrapyard -10/Materials (discovered 2 exits: *Min x2) -10/Mines -9/Materials History --------- Turn | Location | Event 13 | -11/Scrapyard | Discovered new exit (range 15) 134 | -11/Scrapyard | Entered Materials 143 | -10/Materials | Identified exit to Mines 306 | -10/Materials | Build established: Mutant 486 | -10/Materials | Entered Mines 501 | -10/Mines | Learned 4 Materials zone layouts 565 | -10/Mines | Discovered new exit (range 5) 573 | -10/Mines | Entered Materials 573 | -9/Materials | Evolved 2 slots: Propulsion x1, Utility x1 661 | -9/Materials | Self-destructed Last Messages --------------- Data stored: Materials zone layouts (x4). 00501_ K-01 Serf collects debris. 00537_ Kicked U-05 Engineer. 00546_ K-01 Serf collects debris. 00565_ EXIT=FOUND 00567_ K-01 Serf collects debris. PARAMETERS=PROPULSION+1,UTILITY+1 LOCATION=UNKNOWN GOAL=ESCAPE Loading 4 Materials zones... 00596_ Connecting with Recycling Unit... 00596_ Current location identified: Materials >>Trojan(Reject) Trojan loaded successfully. Testing... Ejection routine running. >>Trojan(Mask) Trojan loaded successfully. Testing... Masking routine running. Map ----- +----------------------------------------------------+ | | | | | | | | | | | | | | | | | | | | | | | ?????############????????????????????????????????? | | ????# #????????????????????????????????? | | ????# """ #?????????????????###????????????? | | ????# """"" #????????????????? #????????????? | | ##### """"" ""#????????????????? ########??#### | | # # """"" Y"#????????????????? # #??# | | # # """ ""#????????????????? # """#### | | # # #????????????????? # """# # | | # ###+###########??????????????? # """# # " | | # #??????????????? # + / " | | # #??????????????? # # # " | | # #??????????????? ######## #### | | ############### #################+####### # | | ??????????????# g g # | | ??????????????# @ s + | | ??????????????# #################+####### # | | ??????????? #??????????????? #??## ### | | ???????? #???????????????"""" #???# #?# | | ???????# #???????????????"""" #???# #?### | | ???????# ########???????????????"""" #####+####? | | ???????# ???????????????????????? # #? | | ???????# ????????????????????????? # ## | | ??????????????????????????????????##+### + | | ?????????????????????????????????? # ## | | ?????????????????????????????????? + #? | | ????????? ???????????????? | | ?????????+################### ???????????????? | | ????????? #?????????????# ???????????????? | | ????????? """ #?????????????# ???????????????? | | ????????? """ #??????######## ???????????????? | | ????????? """ #??????# ???????????????? | | ????????? ######## ???????????????? | | ????????? """ + ???????????????? | | ????????? """ #########+##########???????????????? | | ????????? """ #???# #????#???????????????? | | ????????? #???# #????#???????????????? | | ?????????########## """ """ #????#???????????????? | | ????????????# ## """ """ #????#???????????????? | | ????????????# ## """ """ #????#???????????????? | +----------------------------------------------------+ Best States ------------- Heat Dissipation 28 Energy Generation 10 Energy Capacity 250 Matter Stores 300 Matter Capacity 300 Sight Range 16 Terrain Scan Density 10 Evasion (%) 55 Item Schematics ----------------- None Robot Schematics ------------------ None Fabricated ------------ Nothing Repaired ---------- Nothing Alien Tech Used ----------------- None Achievements -------------- None Challenges ------------ None Game ------ Seed CobblerPartitionDeflector Manual? 0 Play Time 00:05:56 Cumulative 151.5 hours Start 2025.05.16 @ 15:40:33 End 2025.05.21 @ 08:41:04 Sessions 3 Manual Loads 0 Difficulty Rogue Special Mode None Game No. 80 Rogue 76 Adventurer 2 Explorer 2 Win Type - Total 2 Types 1/0/1/0/0/0/0/0/0/0 Lore% 62 Gallery% 63 Achievement% 51 Wizard Run 0 Options --------- Layout 0 ASCII 0 Keyboard 1 Movement Arrows Keybinds 0 Fullscreen 2 Font 18/Terminus Map View 76x50 Zoom Use 0% Tactical HUD 1 Map Filters NONE Filters NONE Steam 1 RUN: e8f030ae-ab92-4f5c-b7c3-d05decbed430